Cogmind - Beta 15 @@@ ROGUE MODE // 2025.05.23 @ 22:25:13 Player: amhumam Result: Destroyed by H-71 Marshal with Heavy Mass Driver Performance ------------- Evolutions (5) 2500 Regions Visited (11) 2200 Robots Destroyed (73) 365 Value Destroyed (2703) 2703 Prototype IDs (37) 740 Alien Tech Used (0) 0 Bonus (2921) 2921 TOTAL SCORE: 11429 Bonus ------- High Alert Combat Kills 299 Follower Combat Kills 1873 Registered with UFD 300 Met Optimus in HQ 500 Met Data Miner 300 Friendly Fire -351 Cogmind --------- Core Integrity 0/1000 Matter 58/300 Energy 29/100 System Corruption 7% Temperature Cool (9) Movement Core (50) Location -5/Factory Parts ------- > --- POWER (1) -------- (None) > --- PROPULSION (4) --- (None) > --- UTILITY (8) ------ Advanced Heat Sink Advanced Signal Interpreter Makeshift Utility Shielding Advanced Hacking Suite Improved System Shield > --- WEAPON (4) ------- (None) > --- INVENTORY (5) ---- 0b10 Decoder Chip [Generic] Enhanced Scrap Shield Amulet of Y3-NDR Heavy Rocket Launcher Peak State ------------ > --- POWER ------------ Light Fission Core > --- PROPULSION ------- Spiked Medium Treads Spiked Medium Treads Spiked Medium Treads Spiked Medium Treads > --- UTILITY ---------- High-capacity Storage Unit Improved Sensor Array Advanced Signal Interpreter Makeshift Utility Shielding Advanced Hacking Suite Improved System Shield Improved System Shield Amulet of Y3-NDR > --- WEAPON ----------- Heavy Ion Cannon Heavy Flak Cannon Mass Driver Ionic Axe > --- INVENTORY -------- Angular Momentum Engine Armored Medium Treads Advanced Heat Sink Huge Storage Unit 0b10 Decoder Chip [Generic] Improved Medium Armor Plating Layered Medium Armor Plating Enhanced Scrap Shield A0-MCA's Component Scanner Mapping Drone Bay Power Bank Core Expander Variable Charge Gun Enhanced Gauss Cannon Heavy Rocket Launcher Scatter Rocket Array Scatter Rocket Array Junk Cannon [Rating: 96] Favorites ----------- Power Ion Engine Engine Ion Engine Power Core Light Fission Core Propulsion Spiked Medium Treads Treads Spiked Medium Treads Leg Flexi-carbon Leg Wheel Wheel Utility Advanced Signal Interpreter Device Scrapoid Pod Storage Large Storage Unit Processor Advanced Signal Interpreter Hackware Improved System Shield Protection Makeshift Utility Shielding Weapon Heavy Flak Cannon Energy Gun Medium Laser Energy Cannon Plasma Cannon Ballistic Gun Gauss Rifle Ballistic Cannon Heavy Flak Cannon Launcher Subdweller Shrapnel Launcher Special Weapon Remote Datajack Slashing Weapon Power Sword Build | -11 -10 -10 -10 -8 -8 -6 -6 -6 -6 -5 -5 ------- Run | Yrd Mat Min Sub Rec Scr Fac Low Low Dat Pro Fac Slots Evolved 10 | . . . . . . 8 . . . . 2 Power . | . . . . . . . . . . . . Propulsion 2 | . . . . . . 2 . . . . . Utility 6 | . . . . . . 5 . . . . 1 Weapon 2 | . . . . . . 1 . . . . 1 Parts Attached 91 | 6 4 5 8 1 9 11 11 9 . 1 26 Power 11 | 1 1 1 . . 1 1 3 . . . 3 Engine 6 | 1 . 1 . . 1 . 1 . . . 2 Core 5 | . 1 . . . . 1 2 . . . 1 Reactor . | . . . . . . . . . . . . Propulsion 21 | 2 . 1 4 1 . 3 3 5 . . 2 Treads 9 | 2 . . . . . . 1 5 . . 1 Leg 2 | . . . . . . . 1 . . . 1 Wheel 10 | . . 1 4 1 . 3 1 . . . . Hover . | . . . . . . . . . . . . Flight . | . . . . . . . . . . . . Utility 27 | 1 3 . 1 . 2 6 1 2 . 1 10 Device 12 | . 1 . 1 . 1 4 1 1 . . 3 Storage 5 | 1 2 . . . 1 . . . . . 1 Processor 2 | . . . . . . 2 . . . . . Hackware 4 | . . . . . . . . . . . 4 Protection 4 | . . . . . . . . 1 . 1 2 Artifact . | . . . . . . . . . . . . Weapon 32 | 2 . 3 3 . 6 1 4 2 . . 11 Energy Gun 2 | 1 . . . . . . . . . . 1 Energy Cannon 7 | . . 1 1 . 2 1 . . . . 2 Ballistic Gun 5 | 1 . . 1 . 1 . 1 1 . . . Ballistic Cannon 5 | . . . . . 1 . 2 . . . 2 Launcher 7 | . . 1 1 . . . . 1 . . 4 Special Weapon 4 | . . 1 . . 2 . . . . . 1 Impact Weapon . | . . . . . . . . . . . . Slashing Weapon 2 | . . . . . . . 1 . . . 1 Piercing Weapon . | . . . . . . . . . . . . Special Melee Weapon . | . . . . . . . . . . . . Unidentified Prototypes 8 | . . . 1 . . . . 1 . . 6 Parts Lost 48 | . . 4 4 . . 6 7 5 . 2 20 Power 8 | . . 1 . . . . 2 . . 1 4 Propulsion 15 | . . 2 2 . . 2 2 1 . . 6 Utility 8 | . . . . . . 2 . 2 . 1 3 Weapon 17 | . . 1 2 . . 2 3 2 . . 7 Highest Loss Streak 17 | . . 2 1 . . 2 6 2 . 1 17 To Critical Strikes 4 | . . . . . . . 1 . . . 3 Average Backups 14 | . 5 8 11 14 15 18 12 16 18 17 17 Power 1 | . 2 2 3 3 2 2 1 1 1 . . Propulsion . | . . . . 2 . . . . 1 1 . Utility 6 | . 1 4 5 6 6 6 4 8 10 10 9 Weapon 4 | . 1 2 2 3 6 7 3 4 4 4 4 Tool/Special . | . . . . . . . . . . . . Unused Backups 31 | . . 1 1 . 7 2 4 4 . 1 11 Power 5 | . . . 1 . 3 . 1 . . . . Propulsion 2 | . . . . . 1 . . . . . 1 Utility 13 | . . 1 . . 1 1 2 1 . 1 6 Weapon 7 | . . . . . 2 1 . 3 . . 1 Tool/Special 4 | . . . . . . . 1 . . . 3 Average Slot Usage (%) 88 | . 99 88 91 100 93 72 73 90 93 92 95 Engine 6 | . 11 11 14 14 14 2 1 . . 5 1 Core 2 | . 2 2 . . . 4 4 6 6 . 3 Treads 9 | . 28 11 . . . . . 14 26 26 21 Leg 1 | . . . . . . . 5 4 . . . Wheel 9 | . . 6 22 28 28 17 1 4 . . . Device 16 | . 9 14 14 14 7 18 25 23 20 15 10 Storage 9 | . 18 14 14 14 14 6 5 6 6 6 4 Processor 3 | . . . . . . 3 6 6 6 6 5 Hackware 1 | . . . . . . . . . . . 15 Protection 2 | . . . . . . . . 2 6 10 6 Energy Cannon 5 | . . 11 12 14 7 6 6 3 . . 2 Ballistic Gun 5 | . 14 9 1 . 3 5 3 4 13 13 5 Ballistic Cannon 3 | . . . . . 1 5 5 6 6 6 5 Launcher 3 | . . 4 10 14 8 . . 1 . . 1 Special Weapon 1 | . . . . . 7 . . . . . . Slashing Weapon 1 | . . . . . . . 2 2 . . 4 Peak Build Rating 96 | 6 10 10 14 14 23 62 68 86 86 86 96 Average Rating 49 | 4 7 6 10 13 16 49 59 77 86 84 89 On Entrance 37 | . 6 10 6 14 13 21 58 68 86 86 84 Naked Turns . | . . . . . . . . . . . . Heaviest Build 87 | 14 30 32 42 42 60 74 58 82 82 84 87 Greatest Support 112 | 40 40 40 30 30 20 60 20 112 112 112 112 Greatest Overweight (x) 22 | . . 3 3 2 2 3 10 5 . . 22 Average Overweight (x) 1 | . . 2 1 1 1 1 2 2 . . . Largest Inventory Capacity 25 | 8 15 15 15 15 20 20 20 20 20 20 25 Average Capacity 17 | 6 12 15 15 15 17 20 14 18 20 20 19 Most Carried 20 | 1 10 10 15 15 20 20 20 20 20 20 20 Average Carried 16 | . 6 8 12 15 17 19 14 18 20 19 19 Final Capacity 20 | 8 15 15 15 15 20 20 15 20 20 20 5 Final Carried 20 | 1 10 8 15 15 20 20 15 20 20 20 5 Class Distribution -------------------- 41% | Mutant 15% | Skirmisher 15% | Derelict-Tank 14% | Assassin 8% | Hacker-Skirmisher Dominant Class ---------------- Mutant | -10/Materials Mutant | -10/Mines Mutant | -10/Subcaves Mutant | -8/Recycling Mutant | -8/Scraptown Scavenger-Skirmisher | -6/Factory Skirmisher | -6/Lower Caves Assassin | -6/Lower Caves Derelict-Tank | -6/Data Miner Derelict-Tank | -5/Proximity Caves Hacker-Skirmisher | -5/Factory Resources | -11 -10 -10 -10 -8 -8 -6 -6 -6 -6 -5 -5 ----------- Run | Yrd Mat Min Sub Rec Scr Fac Low Low Dat Pro Fac Matter Collected 3275 | 222 113 220 248 . 265 901 346 265 . 120 575 Remotely . | . . . . . . . . . . . . Salvage Created 2529 | . 284 380 75 . . 282 141 223 . 26 1118 Parts 139 | . 19 20 8 . 6 11 6 11 . 2 56 Haulers Intercepted 1 | . 1 . . . . . . . . . . Recyclers Shooed 1 | . . . . . . 1 . . . . . Parts Field Recycled . | . . . . . . . . . . . . Retrieved Matter . | . . . . . . . . . . . . Parts Self-Destructed 57 | . . . 10 . . . 9 24 . 14 . Prevented 44 | . . . . . . . . 25 . 19 . Kills | -11 -10 -10 -10 -8 -8 -6 -6 -6 -6 -5 -5 ------- Run | Yrd Mat Min Sub Rec Scr Fac Low Low Dat Pro Fac Combat Hostiles Destroyed 64 | . 7 8 7 . . 10 4 6 . 1 21 Melee 3 | . . . . . . . 2 . . . 1 Guns 24 | . 7 4 . . . 3 . 2 . 1 7 Cannons 21 | . . 3 . . . 7 2 1 . . 8 AOE 16 | . . 1 7 . . . . 3 . . 5 Classes Destroyed 14 | . 3 2 1 . 1 . 1 3 . . 3 Builder 3 | . . . . . . . . . . . 3 Tunneler 1 | . . 1 . . . . . . . . . Hauler 1 | . 1 . . . . . . . . . . Recycler 2 | . . 1 . . . . . . . . 1 Watcher 1 | . . . . . . . . . . . 1 Swarmer 24 | . 3 2 5 . . 7 2 2 . 1 2 Grunt 25 | . 4 6 1 . . 2 . 1 . . 11 Brawler 1 | . . . . . . . . 1 . . . Duelist 3 | . . . . . . . . 1 . . 2 Sentry 4 | . . . 1 . . 1 . . . . 2 Hunter 4 | . . . . . . . 2 . . . 2 Programmer 2 | . . . . . . . . 1 . . 1 Heavy 1 | . . . . . . . . . . . 1 Subdweller 1 | . . . . . 1 . . . . . . Best Kill Streak 7 | . 3 5 3 . . 4 2 4 . 1 7 Combat Bots Only 7 | . 3 4 3 . . 4 2 4 . 1 7 Max Kills in Single Turn 3 | . 1 1 1 . 1 1 1 3 . 1 3 Gunslinging . | . . . . . . . . . . . . Exploded 3 | . . 1 1 . . . . 3 . . 2 Melee 1 | . . . . . . . 1 . . . 1 Uniques/NPCs Destroyed . | . . . . . . . . . . . . Combat | -11 -10 -10 -10 -8 -8 -6 -6 -6 -6 -5 -5 -------- Run | Yrd Mat Min Sub Rec Scr Fac Low Low Dat Pro Fac Hostile Shots Fired 641 | . 31 50 38 . . 86 57 55 . 14 310 Missed 155 | . 8 10 17 . . 23 5 20 . 5 67 Hits 486 | . 23 40 21 . . 63 52 35 . 9 243 Melee 2 | . . . . . . . . . . . 2 Projectile 484 | . 23 40 21 . . 63 52 35 . 9 241 Critical Strikes 20 | . . . . . . . 2 1 . 1 16 Part Disruptions 1 | . . . . . . . . . . . 1 Damage Taken 8403 | . 365 454 265 . . 806 911 555 . 192 4855 Core 1428 | . 44 140 51 . . 42 71 33 . 45 1002 Absorbed by Shields . | . . . . . . . . . . . . Redirected to Shielding 25 | . . . . . . . . . . 2 23 Regen/Repaired (Parts) 120 | . . . . . 120 . . . . . . Core Remaining (%) 61 | 100 . . . . 6 . . . . 77 . Volleys Fired 182 | . 18 29 23 . 9 22 11 10 . 5 55 Largest 4 | . 2 2 2 . 2 3 3 3 . 3 4 Hottest 272 | . 70 100 120 . 97 155 142 163 . 102 272 Shots Fired 361 | . 36 48 27 . 14 48 21 26 . 15 126 Gun 139 | . 36 22 4 . . 13 2 13 . 10 39 Cannon 187 | . . 15 15 . 10 35 19 11 . 5 77 Launcher 20 | . . 2 7 . . . . 2 . . 9 Special 15 | . . 9 1 . 4 . . . . . 1 Kinetic 195 | . 18 17 11 . 5 26 10 23 . 15 70 Thermal 146 | . 18 29 16 . 5 20 11 1 . . 46 Explosive 13 | . . 2 . . . . . 2 . . 9 Electromagnetic 2 | . . . . . . 2 . . . . . Impact 1 | . . . . . . . . . . . 1 Robot Hit Streak 19 | . 9 11 4 . 11 13 6 6 . 2 19 Robot Miss Streak 11 | . 2 4 1 . 2 6 3 7 . 6 11 Penetration Max . | . . . . . . . . . . . . Secondary Targets 1 | . . 1 . . . . . . . . . Max Gunslinging Chain 1 | . . 1 . . . . . . . . . Shots Hit Robots 221 | . 23 24 6 . 11 29 17 19 . 7 85 Core Hits 182 | . 13 11 8 . 3 27 8 26 . 4 82 Critical Kills . | . . . . . . . . . . . . Critical Parts Destroyed . | . . . . . . . . . . . . Critical Strikes 3 | . 1 . . . . . 1 . . . 1 Burn 1 | . 1 . . . . . . . . . . Blast 1 | . . . . . . . 1 . . . . Sever 1 | . . . . . . . . . . . 1 Melee Attacks 24 | . . . . . . . 12 . . . 12 Impact . | . . . . . . . . . . . . Slashing 24 | . . . . . . . 12 . . . 12 Piercing . | . . . . . . . . . . . . Sneak Attacks 1 | . . . . . . . . . . . 1 Combat Hostiles . | . . . . . . . . . . . . Follow-up Attacks . | . . . . . . . . . . . . Damage Inflicted 7281 | . 284 459 689 . 217 716 421 873 . 110 3512 Guns 1457 | . 284 156 . . . 149 10 156 . 56 646 Cannons 3025 | . . 211 17 . 217 567 298 277 . 54 1384 Explosions 2472 | . . 92 672 . . . . 440 . . 1268 Melee 272 | . . . . . . . 113 . . . 159 Ramming . | . . . . . . . . . . . . Kinetic 3357 | . 133 131 672 . 126 407 106 433 . 110 1239 Thermal 1797 | . 151 236 17 . 91 309 202 . . . 791 Explosive 1800 | . . 92 . . . . . 440 . . 1268 Electromagnetic . | . . . . . . . . . . . . Impact 55 | . . . . . . . . . . . 55 Slashing 272 | . . . . . . . 113 . . . 159 Piercing . | . . . . . . . . . . . . Highest Corruption 7 | . . . . . . . . . . . 7 Average Corruption 6 | . . . . . . . . . . . 6 Corruption Purged . | . . . . . . . . . . . . Corruption Blocked . | . . . . . . . . . . . . Effects 1 | . . . . . . . . . . . 1 Parts Rejected 1 | . . . . . . . . . . . 1 Overload Shots 1 | . . . . . . . . . . . 1 Overflow Damage 119 | . . . 25 . . . 20 1 . . 73 Projectiles 66 | . . . . . . . 20 1 . . 45 Explosions 53 | . . . 25 . . . . . . . 28 Melee . | . . . . . . . . . . . . Knockbacks 30 | . . . . . . 3 1 5 . 7 14 Impact 1 | . . . . . . . . . . . 1 Kinetic 28 | . . . . . . 3 1 5 . 6 13 Secondary 1 | . . . . . . . . . . 1 . Self-Inflicted Damage 74 | . . 15 . . . . . . . . 59 Shots 4 | . . 1 . . . . . . . . 3 Rammed . | . . . . . . . . . . . . Targets Rammed . | . . . . . . . . . . . . Kicked . | . . . . . . . . . . . . Crushed . | . . . . . . . . . . . . Highest Temperature 469 | . 36 78 36 . 156 215 . 102 . 66 469 Average Temperature 87 | . 14 24 16 . 87 68 . 36 . 31 128 Received Heat Transfer 1315 | . 93 198 63 . . 126 . 162 . 12 661 Effects 5 | . . . . . . . . . . . 5 Energy Bleed 2 | . . . . . . . . . . . 2 Interference 2 | . . . . . . . . . . . 2 Matter Decay 1 | . . . . . . . . . . . 1 Siege Activations . | . . . . . . . . . . . . Martial Activations . | . . . . . . . . . . . . Shielding Activations . | . . . . . . . . . . . . Robots Disrupted . | . . . . . . . . . . . . Combat Hostiles . | . . . . . . . . . . . . Robots Corrupted . | . . . . . . . . . . . . Combat Hostiles . | . . . . . . . . . . . . Parts Fried 1 | . 1 . . . . . . . . . . Impact Corruptions 1 | . . . . . . . . . . . 1 Robots Melted . | . . . . . . . . . . . . Combat Hostiles . | . . . . . . . . . . . . Parts Melted 4 | . . . . . . . 2 . . . 2 Heat Transferred 3294 | . 518 518 37 . 148 600 400 . . . 1073 Parts Sabotaged . | . . . . . . . . . . . . Parts Stolen . | . . . . . . . . . . . . Parts Stripped . | . . . . . . . . . . . . Power Chain Reactions . | . . . . . . . . . . . . Alert | -11 -10 -10 -10 -8 -8 -6 -6 -6 -6 -5 -5 ------- Run | Yrd Mat Min Sub Rec Scr Fac Low Low Dat Pro Fac Maximum Alert Level 3 | . . . . . . . . . . . 3 Low Security (%) 71 | 100 100 100 . 100 . 100 . . . . 36 Level 1 6 | . . . . . . . . . . . 14 Level 2 18 | . . . . . . . . . . . 41 Level 3 3 | . . . . . . . . . . . 6 Level 4 . | . . . . . . . . . . . . Level 5 . | . . . . . . . . . . . . High Security . | . . . . . . . . . . . . Max Security . | . . . . . . . . . . . . Peak Influence 867 | . 60 76 . 93 . 90 . . . . 867 Initial 93 | . . 15 . 93 . . . . . . . Average 185 | . 22 24 . 66 . 32 . . . . 374 Influence Increases 4308 | . 178 214 342 . . 255 100 822 . 255 2142 Destroy 0b10 Robot/C 2400 | . 140 160 220 . . 200 80 520 . 180 900 Destroy 0b10 Robot/NC 80 | . 5 10 . . . . . . . 10 55 Destroy Leader 378 | . 32 20 10 . . 40 20 60 . 20 176 Allied During Kill 719 | . . . 52 . . . . 242 . 45 380 Successful Hack 19 | . . . . . . . . . . . 19 Disable Machine 255 | . . . . . . 15 . . . . 240 Destroy Structure 397 | . 1 24 . . . . . . . . 372 Lose Combat Pursuer 60 | . . . 60 . . . . . . . . Influence Decreases 3509 | . 138 254 147 162 33 250 105 538 284 255 1343 Entered New Map 447 | . . 25 . 102 33 . 3 . 284 . . Time Decay 1970 | . 138 209 117 60 . 190 80 458 . 245 473 Lost Part 342 | . . 20 10 . . 60 22 20 . 10 200 Lost Ally 300 | . . . 20 . . . . 60 . . 220 Purge Threat 450 | . . . . . . . . . . . 450 Squads Dispatched 26 | . 2 . . . . 5 . 1 . . 18 Investigation 8 | . 1 . . . . . . . . . 7 Extermination 4 | . . . . . . 1 . . . . 3 Reinforcement 6 | . 1 . . . . 1 . . . . 4 Assault 2 | . . . . . . . . 1 . . 1 Garrison 6 | . . . . . . 3 . . . . 3 Intercept . | . . . . . . . . . . . . Searches Triggered . | . . . . . . . . . . . . Data Miner Redirects 3 | . . . . . . . . . . . 3 Construction Impeded 3 | . . . . . . . . . . . 3 Haulers Reinforced . | . . . . . . . . . . . . Active Scanning Responses . | . . . . . . . . . . . . Cargo Convoy Interrupts . | . . . . . . . . . . . . Stealth | -11 -10 -10 -10 -8 -8 -6 -6 -6 -6 -5 -5 --------- Run | Yrd Mat Min Sub Rec Scr Fac Low Low Dat Pro Fac Distress Signals 7 | . 1 1 . . . . . . . . 5 Communications Jammed . | . . . . . . . . . . . . Distress Signals . | . . . . . . . . . . . . Times Spotted 136 | . 12 10 20 . . 10 4 25 . 11 44 Peak Tracking Total 9 | . 4 5 6 . . 4 2 9 . 4 7 Tactical Retreats 1 | . . . 1 . . . . . . . . Traps | -11 -10 -10 -10 -8 -8 -6 -6 -6 -6 -5 -5 ------- Run | Yrd Mat Min Sub Rec Scr Fac Low Low Dat Pro Fac Traps Triggered 5 | . 1 . 1 . . . . . . . 3 Indirectly . | . . . . . . . . . . . . Trap Hack Attempts . | . . . . . . . . . . . . Triggered . | . . . . . . . . . . . . Disarmed . | . . . . . . . . . . . . Reprogrammed . | . . . . . . . . . . . . Reused . | . . . . . . . . . . . . Traps Extracted . | . . . . . . . . . . . . Installed . | . . . . . . . . . . . . Triggered . | . . . . . . . . . . . . Most Traps Carried 1 | . . . 1 1 1 . . . . . . Machines | -11 -10 -10 -10 -8 -8 -6 -6 -6 -6 -5 -5 ---------- Run | Yrd Mat Min Sub Rec Scr Fac Low Low Dat Pro Fac Machines Disabled 22 | . . . 4 . . 1 . 1 . . 16 Max in Single Turn 3 | . . . 2 . . 1 . . . . 3 Garrison Access 1 | . . . . . . . . . . . 1 Machines Repaired . | . . . . . . . . . . . . Machines Dismantled . | . . . . . . . . . . . . Machines Sabotaged . | . . . . . . . . . . . . Overloaded Fab Kills . | . . . . . . . . . . . . Hacking | -11 -10 -10 -10 -8 -8 -6 -6 -6 -6 -5 -5 --------- Run | Yrd Mat Min Sub Rec Scr Fac Low Low Dat Pro Fac Machines Accessed 21 | . 1 . 1 . 3 . . 1 4 . 11 Terminals 6 | . 1 . . . . . . . . . 5 Fabricators . | . . . . . . . . . . . . Repair Stations . | . . . . . . . . . . . . Recycling Units 5 | . . . . . . . . . . . 5 Scanalyzers . | . . . . . . . . . . . . Garrison Access 1 | . . . . . . . . . . . 1 Total Hacks 87 | . 2 . 3 . 20 . . 1 29 . 32 Successful 68 | . 1 . 3 . 20 . . 1 29 . 14 Failed 19 | . 1 . . . . . . . . . 18 Catastrophic 7 | . . . . . . . . . . . 7 Database Lockouts . | . . . . . . . . . . . . Manual 29 | . 2 . . . . . . . . . 27 Terminals 24 | . 2 . . . . . . . . . 22 Fabricators . | . . . . . . . . . . . . Repair Stations . | . . . . . . . . . . . . Recycling Units 8 | . . . . . . . . . . . 8 Scanalyzers . | . . . . . . . . . . . . Garrison Access 2 | . . . . . . . . . . . 2 Terminal Hacks 56 | . . . 3 . 20 . . 1 29 . 3 Record 32 | . . . 2 . 19 . . . 11 . . Part Schematic 11 | . . . . . . . . . 11 . . Robot Schematic 4 | . . . . . . . . . 4 . . Prototype ID Bank 3 | . . . . . . . . . 3 . . Open Door 1 | . . . . . . . . 1 . . . Branch Access Points 1 | . . . . . . . . . . . 1 Terminal Index 1 | . . . . . . . . . . . 1 Alert Level 1 | . . . . . . . . . . . 1 Proto ID Catalog 2 | . . . 1 . 1 . . . . . . Fabricator Hacks . | . . . . . . . . . . . . Repair Station Hacks . | . . . . . . . . . . . . Recycling Unit Hacks . | . . . . . . . . . . . . Scanalyzer . | . . . . . . . . . . . . Garrison Access Hacks 1 | . . . . . . . . . . . 1 Seal Access 1 | . . . . . . . . . . . 1 Unauthorized Hacks 11 | . 1 . . . . . . . . . 10 Terminals 7 | . 1 . . . . . . . . . 6 Botnet 6 | . 1 . . . . . . . . . 5 Operators 1 | . . . . . . . . . . . 1 Fabricators . | . . . . . . . . . . . . Repair Stations . | . . . . . . . . . . . . Recycling Units 4 | . . . . . . . . . . . 4 Fedlink 4 | . . . . . . . . . . . 4 Scanalyzers . | . . . . . . . . . . . . Garrison Access . | . . . . . . . . . . . . Data Cores Recovered . | . . . . . . . . . . . . Used . | . . . . . . . . . . . . Hacking Detections 8 | . 1 . . . . . . . . . 7 Full Trace Events 1 | . . . . . . . . . . . 1 Feedback Events . | . . . . . . . . . . . . Feedback Blocked . | . . . . . . . . . . . . Robot Schematics Acquired 4 | . . . . . . . . . 4 . . Robots Built . | . . . . . . . . . . . . Authchips . | . . . . . . . . . . . . Time . | . . . . . . . . . . . . Total Robot Build Rating . | . . . . . . . . . . . . Part Schematics Acquired 11 | . . . . . . . . . 11 . . Parts Built . | . . . . . . . . . . . . Authchips . | . . . . . . . . . . . . Time . | . . . . . . . . . . . . Total Part Build Rating . | . . . . . . . . . . . . Parts Repaired . | . . . . . . . . . . . . Time . | . . . . . . . . . . . . Parts Recycled . | . . . . . . . . . . . . Recycled Matter . | . . . . . . . . . . . . Retrieved Matter . | . . . . . . . . . . . . Retrieved Components . | . . . . . . . . . . . . Parts Scanalyzed . | . . . . . . . . . . . . Part Schematics Acquired . | . . . . . . . . . . . . Parts Damaged . | . . . . . . . . . . . . Bothacking | -11 -10 -10 -10 -8 -8 -6 -6 -6 -6 -5 -5 ------------ Run | Yrd Mat Min Sub Rec Scr Fac Low Low Dat Pro Fac Used RIF Installer . | . . . . . . . . . . . . Robots Hacked 2 | . . . . . 2 . . . . . . Non-combat . | . . . . . . . . . . . . Combat 2 | . . . . . 2 . . . . . . Robot Hacks Applied 2 | . . . . . 2 . . . . . . parse_system 2 | . . . . . 2 . . . . . . Relay Couplers Released . | . . . . . . . . . . . . Fabnet Peak Effective % . | . . . . . . . . . . . . Robots Rewired 2 | . . . . . . . . 2 . . . Allies Hacked 1 | . . . . . . . . 1 . . . Hacks Repelled 1 | . . . . . . . . 1 . . . Allies | -11 -10 -10 -10 -8 -8 -6 -6 -6 -6 -5 -5 -------- Run | Yrd Mat Min Sub Rec Scr Fac Low Low Dat Pro Fac Total Allies 39 | . . . 10 . . . . 8 . 6 15 Largest Group 10 | . . . 7 6 6 5 . 6 4 6 10 Highest-Rated Group 588 | . . . 133 114 114 95 . 370 203 364 588 Highest-Rated Ally 81 | . . . 19 19 19 19 . 81 75 81 81 Total Orders . | . . . . . . . . . . . . Ally Attacks 259 | . . . 17 . . 7 . 90 . 22 123 Total Damage 8560 | . . . 225 . . 18 . 2282 . 657 5378 Kills 73 | . . . 4 . . 1 . 21 . 11 36 Allies Corrupted . | . . . . . . . . . . . . Allies Melted 2 | . . . . . . . . . . 2 . Intel | -11 -10 -10 -10 -8 -8 -6 -6 -6 -6 -5 -5 ------- Run | Yrd Mat Min Sub Rec Scr Fac Low Low Dat Pro Fac Active Infowar (turns) 8134 | . . . . . 1097 463 2387 2361 133 536 1157 Sensors 4709 | . . . . . . 250 2387 915 . . 1157 Terrain 6828 | . . . . . 1097 388 2313 2361 133 536 . Robot Analysis Total . | . . . . . . . . . . . . Derelict Logs Recovered 6 | . . . 2 . 3 . 1 . . . . Drone Launches . | . . . . . . . . . . . . Drone Recoveries . | . . . . . . . . . . . . Exploration | -11 -10 -10 -10 -8 -8 -6 -6 -6 -6 -5 -5 ------------- Run | Yrd Mat Min Sub Rec Scr Fac Low Low Dat Pro Fac Turns Passed 13004 | 80 419 649 1533 124 2242 497 2394 2361 133 1099 1473 Spaces Moved 7209 | 47 218 301 1313 91 1906 316 795 1044 84 358 736 Core 24 | 4 . . . . . . 3 . . . 17 Treads 1727 | 43 218 119 . . . . . 187 84 358 718 Legs 434 | . . . . . . . 433 . . . 1 Wheels 5024 | . . 182 1313 91 1906 316 359 857 . . . Hover . | . . . . . . . . . . . . Flight . | . . . . . . . . . . . . Fastest Speed 50 | 50 160 125 95 107 95 103 145 145 160 160 50 Average Speed 139 | 150 160 163 108 108 109 113 208 155 160 160 159 Slowest Speed 1150 | 160 160 240 125 110 110 125 550 240 160 160 1150 Overloaded Moves . | . . . . . . . . . . . . Propulsion Burnouts . | . . . . . . . . . . . . Robots Hopped . | . . . . . . . . . . . . Potential Cave-ins 7 | . . . . . . . 3 . . . 4 Cave-ins Triggered . | . . . . . . . . . . . . Exploration Rate (%) 52 | 5 46 64 78 22 85 6 81 86 70 60 29 Regions Visited 11 Branch Regions 8 Pre-discovered Areas 9 | . . 1 2 . 4 . . . 1 . 1 Known Exits Taken 6 | . . . . . 1 1 1 1 1 1 . Unknown Exits Taken 5 | 1 1 1 1 1 . . . . . . . Scrap Searched 17 | . . 1 . . 6 . 3 5 . 2 . Spaces Dug 21 | . . . . . . . 8 . . . 13 Terrain Destroyed 244 | . . 26 61 . . . 9 27 . . 121 Melee 13 | . . . . . . . 5 . . . 8 Projectile 23 | . . 7 . . . . 4 . . . 12 AOE 208 | . . 19 61 . . . . 27 . . 101 Terrain Rammed . | . . . . . . . . . . . . Walls Destroyed . | . . . . . . . . . . . . Machines Disabled . | . . . . . . . . . . . . Actions | -11 -10 -10 -10 -8 -8 -6 -6 -6 -6 -5 -5 --------- Run | Yrd Mat Min Sub Rec Scr Fac Low Low Dat Pro Fac Total 9792 | 53 251 391 1389 115 2058 418 1491 1760 83 873 910 Wait 2106 | . 2 55 26 24 96 47 645 667 . 502 42 Move 7198 | 46 217 300 1312 90 1905 315 794 1043 83 357 736 Hop . | . . . . . . . . . . . . Pick Up 98 | 1 8 1 13 . 22 12 13 12 . 3 13 Fast Attach 40 | 6 3 1 3 . . 6 5 7 . . 9 Attach 37 | . . 2 3 . 2 6 5 3 . 2 14 Detach 2 | . . . . . . . . . . . 2 Swap 36 | . 1 2 5 1 7 2 2 2 . 3 11 Drop 61 | . 2 1 4 . 17 8 4 8 . 1 16 Fire 182 | . 18 29 23 . 9 22 11 10 . 5 55 Melee 24 | . . . . . . . 12 . . . 12 Ram . | . . . . . . . . . . . . Kick . | . . . . . . . . . . . . Crush . | . . . . . . . . . . . . Escape Stasis . | . . . . . . . . . . . . Rewire 8 | . . . . . . . . 8 . . . Trap . | . . . . . . . . . . . . Miscellaneous . | . . . . . . . . . . . . Route ------- -11/Scrapyard -10/Materials (discovered 2 exits: [*Mat] / [*Min]) -10/Mines (discovered 3 exits: [*Mat x2] / *Sub) -10/Subcaves (discovered 3 exits: [*Mat x2] / [*Rec]) -8/Recycling -8/Scraptown (discovered 2 exits: *Fac x2) -6/Factory (discovered 6 exits: Fac x4 / *Low x2) -6/Lower Caves -6/Lower Caves -6/Data Miner -5/Proximity Caves -5/Factory (discovered 5 exits: *Fac x3 / Upp x2) History --------- Turn | Location | Event 22 | -11/Scrapyard | Discovered new exit (range 15) 81 | -11/Scrapyard | Entered Materials 260 | -10/Materials | Discovered new exit (range 7) 310 | -10/Materials | Build established: Mutant 360 | -10/Materials | Discovered new exit (range 11) 500 | -10/Materials | Entered Mines 515 | -10/Mines | Discovered new exit (range 5) 516 | -10/Mines | Learned location of Storage (-8) 545 | -10/Mines | Excavation squad dispatched 545 | -10/Mines | A large section of the Mines collapsed 615 | -10/Mines | Core integrity fell below 50% 1023 | -10/Mines | Discovered new exit (range 11) 1140 | -10/Mines | Discovered new exit (range 5) 1149 | -10/Mines | Entered Subcaves 1150 | -10/Subcaves | Approached by a straggling Scientist 1159 | -10/Subcaves | Visited triangular shrine 1167 | -10/Subcaves | Found Prototype Device 1168 | -10/Subcaves | Identified V3-11A's Pendant 1173 | -10/Subcaves | Befriended Subdweller 1343 | -10/Subcaves | Befriended Subdweller 1348 | -10/Subcaves | Befriended Subdweller 1397 | -10/Subcaves | A swath of the cavern ceiling suddenly collapsed 1433 | -10/Subcaves | Befriended Subdweller 1441 | -10/Subcaves | Lost 3 allies 1550 | -10/Subcaves | Core integrity fell below 20% 1839 | -10/Subcaves | Discovered new exit (range 14) 1898 | -10/Subcaves | Befriended Subdweller 1898 | -10/Subcaves | Befriended Subdweller 1909 | -10/Subcaves | Discovered new exit (range 8) 1986 | -10/Subcaves | Ambushed by Subdwellers from Twisted Machinery 1988 | -10/Subcaves | Befriended Subdweller 1988 | -10/Subcaves | Befriended Subdweller 2003 | -10/Subcaves | Befriended Subdweller 2003 | -10/Subcaves | Befriended Subdweller 2352 | -10/Subcaves | Visited 4L-MR0's lab 2367 | -10/Subcaves | Found Power Bank 2630 | -10/Subcaves | Discovered new exit (range 14) 2682 | -10/Subcaves | Entered Recycling 2682 | -8/Recycling | Accompanied by 6 allies 2754 | -8/Recycling | Scanned before Scraplab entrance 2778 | -8/Recycling | Entered Scraplab 2786 | -8/Recycling | Discovered new exit (range 3) 2806 | -8/Recycling | Entered Scraptown 2806 | -8/Scraptown | Accompanied by 6 allies 2904 | -8/Scraptown | Delivered V3-11A's Pendant to T0-NE2 in exchange for information 2958 | -8/Scraptown | Visited Assassins FH 2972 | -8/Scraptown | Visited Artisan Demo Area 3033 | -8/Scraptown | Scanned Subdweller tech in exchange for log data 3034 | -8/Scraptown | Learned Factory trap positions 3035 | -8/Scraptown | Learned location of Quarantine (-2) 3036 | -8/Scraptown | Learned Factory non-interactive machine intel 3068 | -8/Scraptown | Discovered new exit (range 11) 3385 | -8/Scraptown | Visited Scrapoid Research Area 3545 | -8/Scraptown | Visited UFD Registry 3545 | -8/Scraptown | Registered with UFD as "Autocircuit" 3569 | -8/Scraptown | Visited Science Guys 3736 | -8/Scraptown | Visited LU-1G1's Boring Crew 3749 | -8/Scraptown | Visited Scrapoid Pod Storage 3756 | -8/Scraptown | Found Scrapoid Pod 3773 | -8/Scraptown | Visited Junk Cannon Lab 3782 | -8/Scraptown | Found Prototype Special Weapon 3801 | -8/Scraptown | Visited Scrap Suit Storage 3817 | -8/Scraptown | Visited Observation Area 3842 | -8/Scraptown | Visited A0-MCA Data Center 3849 | -8/Scraptown | Given a B- rating by A0-MCA 3854 | -8/Scraptown | Found A0-MCA's Component Scanner 3879 | -8/Scraptown | Visited DA-N13 Charitable Foundation 3892 | -8/Scraptown | Found DCF Scrap (26 items) 3920 | -8/Scraptown | Visited Cartography Club 3983 | -8/Scraptown | Learned location of Warlord (-5) 3983 | -8/Scraptown | Learned location of Archives (-4) 3983 | -8/Scraptown | Learned 12 Materials zone layouts 3983 | -8/Scraptown | Learned 8 Factory zone layouts 3983 | -8/Scraptown | Learned 16 Factory zone layouts 3983 | -8/Scraptown | Learned 4 Mines zone layouts 3983 | -8/Scraptown | Learned 8 Lower Caves zone layouts 3983 | -8/Scraptown | Learned 8 Upper Caves zone layouts 3983 | -8/Scraptown | Learned 20 Upper Caves zone layouts 3983 | -8/Scraptown | Learned 16 Proximity Caves zone layouts 3983 | -8/Scraptown | Learned 24 Proximity Caves zone layouts 3983 | -8/Scraptown | Learned location of 3 exits from Factory 3983 | -8/Scraptown | Learned location of 1 exit from Factory 3983 | -8/Scraptown | Identified exit to Factory 4087 | -8/Scraptown | Visited Modified Component R&D 4614 | -8/Scraptown | Visited Junk Repository 4645 | -8/Scraptown | Visited CR-KLE's Repair Center 4654 | -8/Scraptown | CR-KLE repaired 4 parts 4855 | -8/Scraptown | Delivered Scrap Shield to a Scientist 4968 | -8/Scraptown | Met Optimus 4968 | -8/Scraptown | Accepted into 0bPrime 5048 | -8/Scraptown | Entered Factory 5048 | -6/Factory | Accompanied by 5 allies 5048 | -6/Factory | Evolved 8 slots: Propulsion x2, Utility x5, Weapon x1 5049 | -6/Factory | Identified exit to Factory 5049 | -6/Factory | Identified exit to Lower Caves 5052 | -6/Factory | Loaded intel: 94 trap records 5053 | -6/Factory | Loaded intel: 265 non-interactive machine locations 5138 | -6/Factory | Garrison activated, responded to threat 5160 | -6/Factory | Lost 5 allies 5545 | -6/Factory | Entered Lower Caves 5546 | -6/Lower Caves | Identified exit to Lower Caves 5547 | -6/Lower Caves | UFD Scientist delivered a prototype 5602 | -6/Lower Caves | Lost 6 parts (1p2n3w) 5606 | -6/Lower Caves | Found Prototype Protection 5753 | -6/Lower Caves | Build established: Skirmisher 7132 | -6/Lower Caves | Found Alien Artifact 7290 | -6/Lower Caves | Build established: Assassin 7732 | -6/Lower Caves | Learned 12 Factory zone layouts 7939 | -6/Lower Caves | Entered another Lower Caves area 8036 | -6/Lower Caves | Prototype Device suddenly appears! 8052 | -6/Lower Caves | Found Prototype Device 8052 | -6/Lower Caves | Identified Amulet of Y3-NDR 8121 | -6/Lower Caves | Joined by bewildered Wizard 8122 | -6/Lower Caves | Joined by bewildered Wizard 8128 | -6/Lower Caves | Joined by bewildered Wizard 8128 | -6/Lower Caves | Joined by bewildered Wizard 8852 | -6/Lower Caves | Attracted the attention of an 0b10 checkpoint 9149 | -6/Lower Caves | Build established: Skirmisher 9318 | -6/Lower Caves | Spotted B-75 Beast 9332 | -6/Lower Caves | Allies destroyed B-75 Beast 9411 | -6/Lower Caves | Attracted the attention of an 0b10 outpost 9457 | -6/Lower Caves | Joined by bewildered Wizard 9458 | -6/Lower Caves | Joined by bewildered Wizard 9534 | -6/Lower Caves | Discovered new exit (range 3) 9536 | -6/Lower Caves | Identified exit to Data Miner 9808 | -6/Lower Caves | Build established: Derelict-Tank 10300 | -6/Lower Caves | Entered Data Miner 10300 | -6/Data Miner | Accompanied by 4 allies 10300 | -6/Data Miner | Discovered new exit (range 6) 10331 | -6/Data Miner | Met Data Miner 10366 | -6/Data Miner | Learned location of Section 7 (-2) 10366 | -6/Data Miner | Acquired the access code to Warlord's prototype stash 10392 | -6/Data Miner | Received God Mode back door access code from Data Miner 10430 | -6/Data Miner | Identified exit to Proximity Caves 10433 | -6/Data Miner | Entered Proximity Caves 10433 | -5/Proximity Caves | Accompanied by 4 allies 10496 | -5/Proximity Caves | Joined by bewildered Wizard 10500 | -5/Proximity Caves | Joined by bewildered Wizard 10577 | -5/Proximity Caves | Joined by bewildered Wizard 10763 | -5/Proximity Caves | Joined by bewildered Wizard 10765 | -5/Proximity Caves | Joined by bewildered Wizard 11532 | -5/Proximity Caves | Entered Factory 11532 | -5/Factory | Accompanied by 3 allies 11532 | -5/Factory | Evolved 2 slots: Utility x1, Weapon x1 11533 | -5/Factory | Identified exit to Factory 11587 | -5/Factory | Loaded intel: 8 recycling unit locations 11622 | -5/Factory | Found Prototype Launcher 11634 | -5/Factory | Scrapoid Pod released 05F07-D (x5) 11635 | -5/Factory | Joined by bewildered Wizard 11643 | -5/Factory | Joined by bewildered Wizard 11772 | -5/Factory | Joined by bewildered Wizard 11773 | -5/Factory | Joined by bewildered Wizard 11908 | -5/Factory | Identified Tesla Bomb Launcher 11913 | -5/Factory | Garrison activated, responded to threat 11965 | -5/Factory | Joined by bewildered Wizard 11965 | -5/Factory | Joined by bewildered Wizard 11982 | -5/Factory | Lost 3 allies 12025 | -5/Factory | Build established: Hacker-Skirmisher 12086 | -5/Factory | Identified exit to Upper Caves 12129 | -5/Factory | Joined by bewildered Wizard 12129 | -5/Factory | Joined by bewildered Wizard 12133 | -5/Factory | Incoming investigation squad redirected 12205 | -5/Factory | Learned location of Protoforge (-2) 12234 | -5/Factory | Discovered exit to Factory (range 15) 12287 | -5/Factory | Joined by bewildered Wizard 12364 | -5/Factory | Lost 4 allies 12391 | -5/Factory | Incoming investigation squad redirected 12463 | -5/Factory | Joined by bewildered Wizard 12467 | -5/Factory | Destroyed 7 combat bots 12732 | -5/Factory | First assault squad dispatched 12748 | -5/Factory | Incoming assault squad redirected 12763 | -5/Factory | Found Prototype Launcher 12763 | -5/Factory | Identified Scatter Rocket Array 12767 | -5/Factory | Found Scatter Rocket Array 12891 | -5/Factory | Garrison activated, responded to threat 12970 | -5/Factory | Core integrity fell below 50% 12983 | -5/Factory | Identified Enh. Scrap Shield 12984 | -5/Factory | Identified Junk Cannon 12997 | -5/Factory | Core integrity fell below 20% 13005 | -5/Factory | Destroyed by H-71 Marshal with Heavy Mass Driver Last Messages --------------- 12986_ H-66 Slayer system corrupted by crushing effect. 12986_ H-66 Slayer knocked back. 12987_ Penetrated by Slug. 12988_ K-01 Serf collects debris. 12988_ Penetrated by Slug. 12989_ P-70 Sage resets H-66 Slayer, system corruption cleaned. 12990_ P-70 Sage heat short circuits Tesla Rifle. 12990_ Penetrated by Slug. 12991_ Slug penetrates G-50 Soldier. 12991_ Critical hit (Destroy). 12992_ K-01 Serf collects debris. 12993_ Penetrated by Slug. 12994_ Dropped Hcp. Storage Unit. 12995_ Junk Cannon collects and crushes Hcp. Storage Unit (+4 shots). 12996_ Dropped Junk Cannon. 12997_ Penetrated by Slug. Map ----- +----------------------------------------------------+ | ?? # # """ # # "??????# #! | | ?? # # """ # # "??????# # | | ?? # # # # """""??# # | | ?? # # """ # !# """""" # # | | ?? # # """ # !%# ?# + | | ?? + + """ # =|# =??# # | | ?? # # # #""""""""##??# # | | ?? # # # # ! #??# # | | ??##### ######### # #??# # | | ?? # #### #### | | ?? # ="" # #??? | | ?? # #### ! #??? | | ?? # #??########??? | | ?? # #????????????? | | ??############ #= #????????????? | | ?? """ # % ###| ###????????????? | | ?? """ "Y" # !!]!=! #######???????? | | ?? """ " " # [=[k|h! % ! #???????? | | ?? """ # ""Y"%"hg %## ### #????? | | ?? "" # " " ! " #??? | | ?? "" # """Y"""" ! #??? | | ?? # """ """" # #??? | | ??######+##### " " """ """" ??? | | ????# "G" """"%"""" ??? | | ????# """ """" """p = #### | | ????# H @ | | ????# k u | | ????# ######### # | | ????### ##############?###### # | | ??????# # #??????? ?# | | ??????# # """"""""" #??????? ?# | | ??????# + #??????? ## # #"##?# | | ??????# # """"""""" #??????? ? ##??# | | ??##### # #???????##??######???# | | ?? ##############????????????????????# | | ??#######+#######?????????????????????????????# | | ???# #?????????????????????????????# | | ???# #?????????????????????????????# | | ???# #?????????????????????????????# | | ???# #?????????????????????????????# | | ???# """ #?????????????????????????????#### | | ???# """ #????????????????????????????????? | | ???#""" """ #????????????????????????????????? | | ???#""" #????????????????????????????????? | | ???#"S """ #????????????????????????????????? | | ???#""" """ #????????????????????????????????? | | ???# "" """ #????????????????????????????????? | | ???# #????????????????????????????????? | | ???##############????????????????????????????????? | | | +----------------------------------------------------+ Best States ------------- Heat Dissipation 56 Energy Generation 18 Energy Capacity 300 Matter Stores 300 Matter Capacity 300 Sight Range 16 Robot Scan Range 15 Terrain Scan Range 20 Terrain Scan Density 10 Armor Coverage 800 Utility Shielding 15 Evasion (%) 50 Melee Accuracy 6 Recoil Reduction 4 Offensive Hacking 28 Defensive Hacking 24 Item Schematics ----------------- Combat Drone Bay | -6/Data Miner | Free Lgt. Regenerative Plating | -6/Data Miner | Free Enh. Armored Leg | -6/Data Miner | Free Exp. Heat Sink | -6/Data Miner | Free Cld. Plasma Rifle | -6/Data Miner | Free Centrium Wheel | -6/Data Miner | Free Lrn. Terrain Scanner | -6/Data Miner | Free Hyp. Mass Driver | -6/Data Miner | Free Imp. Coolant Injector | -6/Data Miner | Free Phase Gun | -6/Data Miner | Free Arm. Heavy Treads | -6/Data Miner | Free Robot Schematics ------------------ S-27 Virus | -6/Data Miner | Free B-60 Warrior | -6/Data Miner | Free B-48 Gladiator | -6/Data Miner | Free L-41 Fighter | -6/Data Miner | Free Fabricated ------------ Nothing Repaired ---------- Nothing Alien Tech Used ----------------- None Achievements -------------- None Challenges ------------ None Game ------ Seed GrapheneBottomlessArchive Manual? 0 Play Time 02:34:30 Cumulative 209.6 hours Start 2025.05.23 @ 17:41:55 End 2025.05.23 @ 22:25:13 Sessions 5 Manual Loads 0 Difficulty Rogue Special Mode None Game No. 202 Rogue 202 Adventurer 0 Explorer 0 Win Type - Total 1 Types 1/0/0/0/0/0/0/0/0/0 Lore% 71 Gallery% 58 Achievement% 48 Wizard Run 0 Options --------- Layout 1 ASCII 0 Keyboard 0 Movement Mouse Keybinds 0 Fullscreen 1 Font 24/Smallcaps Map View 50x35 Zoom Use 0% Tactical HUD 1 Map Filters NONE Filters NONE Steam 1 RUN: 4d7756f5-aea9-463d-b6df-652f166faa0e